bitfinex/quotes_BTCUSD_20230118
["timestamp","ask_amount","ask_price","bid_price","bid_amount"]
[1674054461109,1.0001,21540.0,21539.0,0.98021652]
[1674054461355,0.0296803,21546.0,21544.0,0.71106388]
[1674054461605,0.0296803,21546.0,21545.0,0.322305]
[1674054461859,0.0296803,21546.0,21545.0,0.442005]
[1674054462135,0.0296803,21546.0,21545.0,0.322305]
[1674054462372,0.0296803,21546.0,21544.0,0.71106388]
[1674054462925,0.39660587,21546.0,21545.0,0.33222107]
[1674054463208,0.39660587,21546.0,21545.0,0.01187107]
[1674054463492,0.0346803,21546.0,21545.0,0.01187107]
[1674054463776,0.0346803,21546.0,21545.0,0.32270307]
[1674054464012,0.0296803,21546.0,21545.0,0.76302224]
[1674054464262,0.0376803,21546.0,21545.0,0.88302224]
[1674054464522,0.0296803,21546.0,21545.0,0.88302224]
[1674054464987,0.0306803,21546.0,21545.0,1.04589331]
[1674054464990,0.0306803,21546.0,21545.0,0.44370307]
[1674054465246,0.52428248,21546.0,21544.0,0.71106388]
[1674054465499,0.121443,21545.0,21544.0,0.17925171]
[1674054466080,0.00324783,21553.0,21544.0,0.17925171]
[1674054466275,0.16610933,21556.0,21545.0,0.15]
[1674054466276,6.66e-05,21556.0,21545.0,0.15]
[1674054466546,0.11048122,21563.0,21557.0,0.09675898]
[1674054466818,0.44038301,21563.0,21558.0,0.32654]
[1674054467093,0.22136155,21565.0,21557.0,0.07605248]
[1674054467094,0.28563,21565.0,21557.0,0.07605248]
[1674054467631,0.15,21564.0,21557.0,0.07605248]
[1674054467884,0.04702905,21564.0,21558.0,0.057]
[1674054468141,0.1208,21564.0,21558.0,0.057]
[1674054468665,0.2319,21562.0,21558.0,0.057]
[1674054468942,0.47324,21559.0,21551.0,0.18480704]
[1674054469211,0.754,21561.0,21557.0,0.10925]
[1674054469212,0.754,21558.0,21557.0,0.10925]
[1674054469471,0.16151,21555.0,21549.0,0.49008631]
[1674054470201,0.1206,21556.0,21549.0,0.02437564]
[1674054470204,0.1206,21556.0,21551.0,0.009]
[1674054470464,0.04702905,21557.0,21551.0,0.009]
[1674054470719,0.7494,21558.0,21551.0,0.1199]
[1674054470985,0.15,21558.0,21551.0,0.1199]
[1674054471278,0.15,21558.0,21549.0,0.44329684]
[1674054471279,0.1206,21557.0,21549.0,0.44329684]
[1674054471496,0.19702905,21558.0,21551.0,0.112]
[1674054471747,0.1208,21554.0,21551.0,0.112]
[1674054472014,0.15,21553.0,21551.0,0.112]
[1674054472768,0.1208,21554.0,21548.0,0.4248344]
[1674054472770,0.1196,21555.0,21552.0,0.42684352]
[1674054473027,0.6548,21556.0,21552.0,0.42684352]
[1674054473290,0.17782905,21557.0,21552.0,0.42684352]
[1674054473291,0.15,21555.0,21552.0,0.42684352]
[1674054473546,0.1208,21554.0,21548.0,0.47210966]
[1674054473801,0.1208,21552.0,21545.0,0.5790681]
[1674054474069,0.1208,21552.0,21549.0,0.41772751]
[1674054474332,0.6891,21554.0,21549.0,0.41772751]
[1674054474586,0.6891,21554.0,21549.0,0.40961508]
[1674054474853,3.4878,21556.0,21549.0,0.40961508]
[1674054475111,0.8478,21556.0,21549.0,0.40961508]
[1674054475370,0.01,21557.0,21550.0,0.1208]
[1674054475623,0.01,21557.0,21551.0,0.1197]
[1674054475891,0.01,21557.0,21550.0,0.1198]
[1674054476166,0.01,21557.0,21549.0,0.8758517]
[1674054476630,0.1208,21556.0,21548.0,0.49432558]
[1674054476631,0.1208,21554.0,21548.0,0.49432558]
[1674054477149,0.32367,21557.0,21550.0,0.42234893]
[1674054477150,0.1208,21556.0,21550.0,0.42234893]
[1674054477408,0.1208,21556.0,21551.0,0.104]
[1674054477693,0.15,21555.0,21547.0,0.41798369]
[1674054477919,0.1208,21551.0,21548.0,0.104]
[1674054478429,0.1203,21549.0,21545.0,0.49195807]
[1674054478690,1.21965025,21555.0,21551.0,0.005]
[1674054478691,0.04702905,21554.0,21551.0,0.005]
[1674054478935,0.1203,21554.0,21547.0,0.16518]
[1674054479194,0.1203,21554.0,21548.0,0.052]
[1674054479456,0.1203,21554.0,21545.0,0.41881345]
[1674054479457,0.1203,21554.0,21549.0,0.46281014]
[1674054479708,0.15,21555.0,21551.0,0.052]
[1674054479958,0.82,21556.0,21551.0,0.45737593]
[1674054479959,0.6992,21556.0,21551.0,0.45737593]
[1674054480477,0.01,21557.0,21551.0,0.45737593]
[1674054480478,0.01,21557.0,21552.0,0.312044]
[1674054480725,0.01,21557.0,21553.0,0.310141]
[1674054480979,0.01,21557.0,21554.0,0.348883]
[1674054481233,0.01,21557.0,21551.0,1.15115477]
[1674054481554,0.01,21557.0,21551.0,0.74260593]
[1674054481749,0.01,21557.0,21552.0,0.328223]
[1674054482040,0.1208,21555.0,21551.0,0.45737593]
[1674054482289,0.1208,21555.0,21551.0,0.56137593]
[1674054482563,0.1208,21556.0,21551.0,0.45737593]
[1674054482856,0.15,21554.0,21551.0,0.104]
[1674054483105,0.1208,21552.0,21546.0,0.44616865]
[1674054483353,0.1208,21551.0,21546.0,0.44616865]
[1674054483597,0.1199,21552.0,21548.0,0.49117011]
[1674054483858,0.1199,21552.0,21544.0,0.17925171]
[1674054484147,0.1199,21552.0,21546.0,0.057]
[1674054484148,0.1208,21548.0,21546.0,0.057]
[1674054484386,0.1208,21547.0,21546.0,0.057]
[1674054485155,0.2416,21547.0,21544.0,0.17925171]
[1674054485447,0.15,21548.0,21544.0,0.17925171]
[1674054485448,0.1203,21545.0,21544.0,0.17925171]
[1674054485663,0.2406,21545.0,21544.0,0.17925171]
[1674054486204,0.2406,21545.0,21540.0,0.02364951]
[1674054486205,0.15,21544.0,21540.0,0.02364951]
[1674054486743,0.56861934,21544.0,21540.0,0.02364951]
[1674054486983,0.15,21543.0,21538.0,0.05189177]
[1674054487248,0.2411,21539.0,21538.0,0.05189177]
[1674054487501,0.8453,21539.0,21538.0,9.177e-05]
[1674054487761,0.3912,21539.0,21538.0,9.177e-05]
[1674054488576,0.15,21538.0,21536.0,0.0026235]
[1674054488837,1.07676,21537.0,21536.0,0.0026235]
[1674054489086,0.15,21536.0,21535.0,0.00352597]
[1674054489398,0.3909,21536.0,21535.0,0.00352597]
[1674054489636,0.3909,21536.0,21535.0,2.597e-05]
[1674054489890,0.2409,21536.0,21534.0,0.00016907]
[1674054490154,0.1208,21536.0,21534.0,0.00016907]
[1674054490411,0.1208,21536.0,21535.0,0.007]
[1674054490412,0.1288,21536.0,21535.0,0.007]
[1674054491197,0.1208,21536.0,21534.0,0.00016907]
[1674054491450,0.9295,21536.0,21535.0,0.001]
[1674054491701,1.16167,21536.0,21535.0,0.001]
[1674054491991,1.16167,21536.0,21534.0,0.00016907]
[1674054491992,2.59699,21536.0,21534.0,0.00016907]
[1674054492190,2.59699,21536.0,21530.0,0.0002]
[1674054492191,0.15,21535.0,21530.0,0.0002]
[1674054492448,0.2404,21531.0,21530.0,0.0002]
[1674054493729,0.845,21531.0,21530.0,0.0002]
[1674054494253,1.3291,21531.0,21530.0,0.0002]
[1674054494501,1.9319,21531.0,21530.0,0.0002]
[1674054496046,0.15,21530.0,21529.0,0.03629356]
[1674054496567,0.38224,21530.0,21529.0,0.03629356]
[1674054496832,0.15,21530.0,21529.0,0.03629356]
[1674054497658,0.1419,21530.0,21529.0,0.03629356]
[1674054497919,0.091,21530.0,21529.0,0.03629356]
[1674054498444,0.091,21530.0,21529.0,0.36062156]
[1674054498706,0.3781,21531.0,21529.0,0.0585293]
[1674054498985,0.3781,21531.0,21530.0,0.331519]
[1674054499242,0.3781,21531.0,21527.0,0.15316749]
[1674054499502,0.3781,21531.0,21529.0,0.098]
[1674054499788,0.3781,21531.0,21530.0,0.322577]
[1674054500096,0.3781,21531.0,21530.0,0.321281]
[1674054500360,0.3781,21531.0,21530.0,0.71158323]
[1674054500870,0.16047,21542.0,21532.0,0.73156733]
[1674054500871,0.1413,21542.0,21532.0,0.73156733]
[1674054501177,0.1413,21542.0,21533.0,1.51985766]
[1674054501441,0.1413,21542.0,21534.0,0.33508]
[1674054501695,0.1413,21542.0,21535.0,0.315074]
[1674054501944,0.0682,21538.0,21536.0,0.319319]
[1674054502203,0.0682,21538.0,21537.0,0.335876]
[1674054502851,0.0682,21538.0,21537.0,0.69585017]
[1674054503367,0.0682,21538.0,21537.0,0.335876]
[1674054503906,0.0682,21538.0,21535.0,0.082]
[1674054504161,0.0682,21538.0,21536.0,0.320842]
[1674054504413,0.0682,21538.0,21537.0,0.307343]
[1674054504668,0.0682,21538.0,21537.0,0.097]
[1674054504669,0.2101,21538.0,21537.0,0.097]
[1674054504934,0.2101,21538.0,21533.0,0.7647]
[1674054505206,0.15,21537.0,21535.0,0.097]
[1674054505465,0.15,21537.0,21532.0,0.73156733]
[1674054506226,0.2101,21538.0,21532.0,0.73156733]
[1674054507015,0.2101,21538.0,21533.0,0.089]
[1674054507267,0.1418,21535.0,21532.0,0.73156733]
[1674054507553,0.1419,21533.0,21532.0,0.73456733]
[1674054507846,0.407664,21533.0,21532.0,0.73156733]
[1674054508125,0.265764,21533.0,21532.0,0.73856733]
[1674054508381,0.15,21535.0,21532.0,0.73156733]
[1674054508636,0.0631,21533.0,21532.0,0.73956733]
[1674054508896,0.0631,21533.0,21532.0,0.73156733]
[1674054509331,0.328864,21533.0,21532.0,0.73156733]
[1674054509333,0.478864,21533.0,21532.0,0.73156733]
[1674054509552,0.52589305,21533.0,21532.0,0.73156733]
[1674054509834,0.478864,21533.0,21532.0,0.73156733]
[1674054510095,0.481864,21533.0,21532.0,0.73156733]
[1674054510355,0.478864,21533.0,21532.0,0.73156733]
[1674054511633,0.481864,21533.0,21532.0,0.73956733]
[1674054511899,0.478864,21533.0,21532.0,0.73156733]
[1674054512672,0.711084,21533.0,21532.0,0.73156733]
[1674054512957,0.478864,21533.0,21532.0,0.73156733]
[1674054513429,0.331864,21533.0,21532.0,0.73848267]
[1674054513685,0.328864,21533.0,21529.0,0.14118]
[1674054513944,0.0661,21533.0,21532.0,0.06173]
[1674054514456,0.0661,21533.0,21532.0,0.4703702]
[1674054514712,0.0631,21533.0,21532.0,0.4623702]
[1674054514978,0.0661,21533.0,21532.0,0.4623702]
[1674054515251,0.0631,21533.0,21529.0,0.37060323]
[1674054515559,0.0631,21533.0,21527.0,0.72954749]
[1674054515560,0.265764,21532.0,21527.0,1.22792387]
[1674054515765,0.265764,21531.0,21527.0,1.22559395]
[1674054516018,0.0631,21533.0,21527.0,1.22559395]
[1674054516741,0.0631,21533.0,21532.0,0.01387046]
[1674054517038,0.0631,21533.0,21529.0,0.14336]
[1674054518306,0.0631,21533.0,21529.0,0.089]
[1674054519365,0.0631,21533.0,21529.0,0.52225294]
[1674054520111,0.0631,21533.0,21530.0,0.316826]
[1674054520364,0.0631,21533.0,21531.0,0.303183]
[1674054520624,0.0631,21533.0,21532.0,0.70309183]
[1674054521167,0.0631,21533.0,21532.0,0.39067083]
[1674054521702,0.0631,21533.0,21532.0,0.70315983]
[1674054522454,2.64,21538.0,21532.0,0.70315983]
[1674054522723,0.0001,21540.0,21533.0,0.305242]
[1674054522981,0.0001,21540.0,21532.0,0.47767083]
[1674054523234,0.265764,21539.0,21532.0,0.47767083]
[1674054523492,0.15,21538.0,21532.0,0.39067083]
[1674054523749,0.15,21538.0,21532.0,0.48267083]
[1674054524019,0.15,21538.0,21532.0,0.39067083]
[1674054524020,0.265764,21537.0,21532.0,0.39067083]
[1674054524270,0.15,21538.0,21532.0,0.48367083]
[1674054524545,0.265764,21537.0,21532.0,0.48367083]
[1674054524800,0.15,21539.0,21532.0,0.48367083]
[1674054525055,0.1501,21540.0,21532.0,0.48367083]
[1674054525583,0.265764,21539.0,21532.0,0.48367083]
[1674054525886,0.1501,21540.0,21532.0,0.39067083]
[1674054526090,0.1501,21540.0,21532.0,0.48267083]
[1674054526338,0.1501,21540.0,21532.0,0.39067083]
[1674054526599,0.0001,21540.0,21532.0,0.48267083]
[1674054526853,0.0001,21540.0,21533.0,0.7097]
[1674054527102,0.0001,21540.0,21534.0,0.15]
[1674054527917,0.0001,21540.0,21533.0,0.7097]
[1674054528207,0.265764,21539.0,21533.0,0.7097]
[1674054528676,0.0001,21540.0,21534.0,0.36730159]
[1674054528941,0.0001,21540.0,21534.0,0.15]
[1674054529192,0.0001,21540.0,21537.0,0.1426]
[1674054529439,0.0001,21540.0,21538.0,0.316022]
[1674054529691,0.0001,21540.0,21539.0,0.31872]
[1674054529956,0.0001,21540.0,21535.0,0.55437518]
[1674054530212,0.0001,21540.0,21537.0,0.092]
[1674054530477,0.0001,21540.0,21534.0,1.12725743]
[1674054530732,0.0001,21540.0,21539.0,0.092]
[1674054531785,0.0001,21540.0,21538.0,0.45058155]
[1674054532074,0.0001,21540.0,21539.0,0.310762]
[1674054532627,0.0001,21540.0,21538.0,0.45058155]
[1674054532880,0.0001,21540.0,21539.0,0.092]
[1674054533883,0.0001,21540.0,21538.0,0.45058155]
[1674054533884,0.01,21540.0,21538.0,0.45058155]
[1674054534659,0.01,21540.0,21538.0,0.54258155]
[1674054536196,0.01,21540.0,21538.0,0.53758155]
[1674054537468,0.01,21540.0,21538.0,0.44558155]
[1674054537722,0.01,21540.0,21539.0,0.3115]
[1674054538243,0.01,21540.0,21539.0,0.312876]
[1674054538504,0.01,21540.0,21538.0,0.44558155]
[1674054538803,0.01,21540.0,21539.0,0.092]
[1674054539512,0.01,21540.0,21538.0,0.44558155]
[1674054540830,0.01,21540.0,21538.0,0.53758155]
[1674054542117,0.005,21540.0,21538.0,0.53758155]
[1674054543169,0.005,21540.0,21538.0,0.092]
[1674054543424,0.31957063,21539.0,21538.0,0.092]
[1674054543690,0.31957063,21539.0,21531.0,0.48298879]
[1674054544004,0.46592135,21539.0,21538.0,0.092]
[1674054544262,0.15,21538.0,21531.0,0.48298879]
[1674054544534,0.15483968,21538.0,21531.0,0.48298879]
[1674054544796,0.265764,21537.0,21527.0,0.00081757]
[1674054545058,0.41302277,21536.0,21531.0,0.085]
[1674054545330,0.415764,21535.0,21527.0,0.52012072]
[1674054545592,0.00690001,21532.0,21527.0,0.00081757]
[1674054545848,0.05575001,21532.0,21531.0,0.093]
[1674054546097,0.32151401,21532.0,21531.0,0.093]
[1674054546357,0.27266401,21532.0,21531.0,0.093]
[1674054546643,0.00690001,21532.0,21529.0,0.47870113]
[1674054546890,0.00690001,21532.0,21531.0,0.35075125]
[1674054547153,0.00690001,21532.0,21531.0,0.65686725]
[1674054547408,0.00790001,21532.0,21531.0,0.87806725]
[1674054547665,1e-08,21532.0,21531.0,0.79906725]
[1674054548163,0.15483183,21540.0,21532.0,0.1579]
[1674054548165,0.00487184,21538.0,21532.0,0.1579]
[1674054548430,0.00487184,21538.0,21533.0,0.315861]
[1674054548688,0.00487184,21538.0,21532.0,0.42107518]
[1674054548689,0.00487184,21538.0,21534.0,0.324887]
[1674054548958,0.00487184,21538.0,21532.0,0.57107518]
[1674054549281,0.15,21540.0,21533.0,0.332534]
[1674054549471,0.00498931,21540.0,21534.0,0.338457]
[1674054549728,0.00498931,21540.0,21533.0,0.49366614]
[1674054549988,0.50149682,21540.0,21533.0,0.49366614]
[1674054550246,0.26007417,21539.0,21533.0,0.49366614]
[1674054550522,0.39142265,21540.0,21533.0,0.49366614]
[1674054550523,0.00798931,21540.0,21533.0,0.55066614]
[1674054550774,0.0522,21537.0,21533.0,0.49366614]
[1674054551024,0.0522,21537.0,21534.0,0.304584]
[1674054551291,0.0522,21537.0,21533.0,0.55066614]
[1674054551292,0.0522,21537.0,21535.0,0.323094]
[1674054551551,0.0522,21537.0,21536.0,0.311675]
[1674054551849,0.0522,21537.0,21536.0,0.80463018]
[1674054552619,0.0522,21537.0,21536.0,0.311675]
[1674054552872,0.0522,21537.0,21536.0,0.75444716]
[1674054553139,0.05173524,21537.0,21536.0,0.75444716]
[1674054553407,0.05173524,21537.0,21536.0,0.86044716]
[1674054553669,0.05173524,21537.0,21536.0,0.311675]
[1674054553926,0.05173524,21537.0,21536.0,0.447357]
[1674054554186,0.05173524,21537.0,21533.0,0.44072914]
[1674054554658,0.05173524,21537.0,21536.0,0.106]
[1674054554916,0.05660234,21537.0,21536.0,0.107]
[1674054555182,0.43244051,21537.0,21532.0,0.0079]
[1674054555441,0.05660234,21537.0,21532.0,0.44329475]
[1674054555703,0.05173524,21537.0,21532.0,0.0079]
[1674054555959,0.05173524,21537.0,21533.0,0.67409071]
[1674054556226,0.05173524,21537.0,21534.0,0.329622]
[1674054556467,0.05173524,21537.0,21535.0,0.319175]
[1674054556711,0.05173524,21537.0,21536.0,0.308268]
[1674054557002,0.05173524,21537.0,21536.0,0.79640578]
[1674054557738,0.05173524,21537.0,21536.0,0.90340578]
[1674054557980,0.05173524,21537.0,21536.0,0.89840578]
[1674054558499,0.05173524,21537.0,21536.0,0.79140578]
[1674054558748,0.05173524,21537.0,21536.0,0.89840578]
[1674054559778,0.05173524,21537.0,21536.0,0.79140578]
[1674054560051,0.05173524,21537.0,21536.0,0.89840578]
[1674054561065,0.05173524,21537.0,21536.0,0.79140578]
[1674054561318,0.05173524,21537.0,21536.0,0.89740578]
[1674054561578,0.05173524,21537.0,21536.0,0.79140578]
[1674054561830,0.05173524,21537.0,21536.0,0.89740578]
[1674054562352,0.05173524,21537.0,21536.0,0.409268]
[1674054562617,0.05173524,21537.0,21536.0,0.106]
[1674054562618,0.05642157,21537.0,21536.0,0.106]
[1674054562872,0.32719757,21537.0,21536.0,0.106]
[1674054563140,0.75263726,21537.0,21536.0,0.106]
[1674054563446,0.74924237,21537.0,21536.0,0.106]
[1674054563702,0.47251124,21537.0,21536.0,0.106]
[1674054563983,0.15,21536.0,21532.0,0.0079]
[1674054564241,0.11113223,21534.0,21532.0,0.0079]
[1674054564499,0.270776,21533.0,21532.0,0.0079]
[1674054565009,0.53190823,21533.0,21532.0,0.0079]
[1674054565271,0.27566397,21533.0,21532.0,0.0079]
[1674054565522,0.27566397,21533.0,21532.0,0.1069]
[1674054566799,0.3867962,21533.0,21532.0,0.1069]
[1674054567050,0.55349455,21533.0,21532.0,0.1069]
[1674054567355,0.49792843,21533.0,21532.0,0.10647947]
[1674054567558,0.66462678,21533.0,21532.0,0.10647947]
[1674054567815,0.38667325,21533.0,21532.0,0.00747947]
[1674054568038,0.38667325,21533.0,21532.0,0.08847947]
[1674054568289,0.38667325,21533.0,21532.0,0.00747947]
[1674054568541,0.54848363,21533.0,21532.0,0.00747947]
[1674054568804,0.54860658,21533.0,21532.0,0.00747947]
[1674054569063,0.92045925,21533.0,21532.0,0.00807947]
[1674054569317,0.15,21532.0,21529.0,0.00388131]
[1674054569569,0.11092751,21531.0,21529.0,0.00388131]
[1674054569857,0.420776,21530.0,21529.0,0.00388131]
[1674054570065,0.42567337,21530.0,21529.0,0.00388131]
[1674054570319,0.420776,21530.0,21529.0,0.00388131]
[1674054570577,0.86431108,21530.0,21529.0,8.131e-05]
[1674054570848,0.15,21529.0,21527.0,0.00081757]
[1674054571359,0.270776,21528.0,21527.0,0.00081757]
[1674054571897,0.420776,21528.0,21527.0,0.00081757]
[1674054572155,0.420776,21528.0,21527.0,0.00981757]
[1674054572462,0.420776,21528.0,21527.0,0.00081757]
[1674054572725,0.19966,21527.0,21518.0,0.41317518]
[1674054572983,0.19966,21527.0,21517.0,0.40649679]
[1674054572984,0.83270658,21526.0,21517.0,0.40649679]
[1674054573232,0.420776,21525.0,21517.0,0.40649679]
[1674054573487,0.15,21525.0,21517.0,0.40649679]
[1674054573973,0.270776,21524.0,21517.0,0.40649679]
[1674054573975,0.4288,21523.0,21517.0,0.40649679]
[1674054574248,0.4288,21523.0,21521.0,0.01051867]
[1674054574249,0.270776,21522.0,21521.0,0.01051867]
[1674054574502,0.270776,21522.0,21521.0,0.00601867]
[1674054574778,0.270776,21522.0,21521.0,1.867e-05]
[1674054575064,0.270776,21522.0,21521.0,0.00501867]
[1674054575796,0.420776,21522.0,21521.0,0.00501867]
[1674054576054,0.420776,21522.0,21521.0,1.867e-05]
[1674054576307,0.437776,21522.0,21521.0,0.00601867]
[1674054577092,0.437776,21522.0,21521.0,1.867e-05]
[1674054577626,0.287776,21522.0,21521.0,1.867e-05]
[1674054577855,0.28598254,21522.0,21521.0,1.867e-05]
[1674054578115,0.43598254,21522.0,21521.0,1.867e-05]
[1674054579611,0.80951254,21522.0,21521.0,1.867e-05]
[1674054579869,0.81422969,21522.0,21521.0,1.867e-05]
[1674054580390,0.44069969,21522.0,21521.0,1.867e-05]
[1674054580641,0.67302969,21522.0,21521.0,1.867e-05]
[1674054580884,0.71534159,21522.0,21521.0,1.867e-05]
[1674054581134,0.44082721,21522.0,21521.0,1.867e-05]
[1674054581385,0.67314721,21522.0,21521.0,1.867e-05]
[1674054581639,0.67314721,21522.0,21512.0,0.00440943]
[1674054581640,1.223864,21522.0,21512.0,0.00440943]
[1674054581885,0.1424,21514.0,21512.0,0.00440943]
[1674054582136,0.268947,21513.0,21512.0,0.00440943]
[1674054582388,0.268947,21513.0,21504.0,0.41261574]
[1674054582658,0.268947,21513.0,21510.0,0.49902002]
[1674054582659,0.5715,21513.0,21510.0,0.49902002]
[1674054582918,0.5715,21513.0,21512.0,0.10364]
[1674054583183,0.5715,21513.0,21507.0,0.29187]
[1674054583184,0.5715,21513.0,21505.0,0.29973071]
[1674054583453,0.27387232,21512.0,21505.0,0.35206051]
[1674054583722,0.5715,21513.0,21506.0,0.15]
[1674054583971,0.5935,21513.0,21512.0,0.006]
[1674054584241,0.840447,21513.0,21505.0,0.66764797]
[1674054584491,0.00490587,21512.0,21505.0,0.43778609]
[1674054584734,0.268947,21511.0,21505.0,0.43778609]
[1674054585315,0.26369678,21511.0,21505.0,0.071]
[1674054585587,0.98667518,21513.0,21505.0,0.071]
[1674054585588,0.00482632,21510.0,21505.0,0.071]
[1674054585857,0.00482632,21510.0,21504.0,0.39348195]
[1674054585858,0.26368,21509.0,21504.0,0.39348195]
[1674054586123,0.00482632,21510.0,21504.0,0.39348195]
[1674054586391,0.26368,21509.0,21504.0,0.39348195]
[1674054586690,0.1,21508.0,21505.0,0.002]
[1674054586973,0.26368,21507.0,21504.0,0.39348195]
[1674054587251,0.00482632,21510.0,21504.0,0.39548195]
[1674054587252,0.15925632,21510.0,21504.0,0.39548195]
[1674054587512,0.15025632,21510.0,21504.0,0.39348195]
[1674054587769,0.01,21509.0,21504.0,0.39548195]
[1674054588066,0.27368,21509.0,21504.0,0.39548195]
[1674054588313,0.26368,21508.0,21504.0,0.39548195]
[1674054588568,0.01,21509.0,21504.0,0.39548195]
[1674054588818,0.26368,21509.0,21504.0,0.39348195]
[1674054589077,0.009,21507.0,21504.0,0.39548195]
[1674054589584,0.009,21507.0,21504.0,0.39748195]
[1674054589832,0.15482632,21510.0,21504.0,0.39348195]
[1674054590092,0.15482632,21510.0,21504.0,0.39548195]
[1674054590093,0.009,21509.0,21504.0,0.39548195]
[1674054590345,0.98467518,21513.0,21504.0,0.39348195]
[1674054590644,0.009,21507.0,21504.0,0.53678195]
[1674054590890,1e-08,21507.0,21504.0,0.39548195]
[1674054591111,1e-08,21507.0,21505.0,0.334293]
[1674054591389,2.64491027,21514.0,21507.0,5.999e-05]
[1674054591631,0.00491027,21514.0,21508.0,0.321362]
[1674054591895,0.008,21510.0,21507.0,5.999e-05]
[1674054592125,0.15414027,21514.0,21507.0,5.999e-05]
[1674054592126,0.14923,21513.0,21507.0,5.999e-05]
[1674054592376,0.15488245,21516.0,21508.0,0.297596]
[1674054592626,0.15488245,21516.0,21508.0,0.41317518]
[1674054592871,0.15488245,21516.0,21508.0,0.001]
[1674054592872,0.081,21514.0,21508.0,0.001]
[1674054593121,0.00492697,21515.0,21509.0,0.42909611]
[1674054593366,0.008,21513.0,21509.0,0.42909611]
[1674054593606,0.00492697,21515.0,21509.0,0.42909611]
[1674054594106,0.26368,21514.0,21509.0,0.42909611]
[1674054594354,0.00492697,21515.0,21509.0,0.42909611]
[1674054594847,2.64,21518.0,21509.0,0.1424]
[1674054595108,0.72550493,21519.0,21512.0,0.1412]
[1674054595109,0.01500493,21519.0,21512.0,0.1412]
[1674054595372,0.00479912,21516.0,21513.0,0.325429]
[1674054595753,0.00479912,21516.0,21512.0,0.38648669]
[1674054596192,0.01500493,21519.0,21514.0,0.37889041]
[1674054596451,0.01999321,21519.0,21514.0,0.37889041]
[1674054598009,0.01999321,21519.0,21514.0,0.52189041]
[1674054598270,0.26368,21518.0,21514.0,0.37889041]
[1674054598543,0.15,21517.0,21514.0,0.143]
[1674054598777,0.1211,21516.0,21514.0,0.143]
[1674054599030,0.26368,21515.0,21514.0,0.143]
[1674054599293,0.26368,21515.0,21507.0,5.999e-05]
[1674054599629,0.41317518,21515.0,21510.0,0.40275555]
[1674054599815,0.53427518,21516.0,21510.0,0.40275555]
[1674054600061,0.26368,21515.0,21514.0,0.143]
[1674054600612,0.26368,21515.0,21514.0,0.1425811]
[1674054600613,0.50588,21515.0,21514.0,0.1425811]
[1674054601169,0.66053385,21515.0,21508.0,0.35237125]
[1674054601423,0.1211,21511.0,21507.0,5.999e-05]
[1674054601680,0.1206,21509.0,21507.0,5.999e-05]
[1674054602208,0.26368,21508.0,21507.0,5.999e-05]
[1674054602481,0.26360209,21508.0,21507.0,5.999e-05]
[1674054602748,0.41360209,21508.0,21507.0,5.999e-05]
[1674054603016,0.26360209,21508.0,21503.0,0.27258013]
[1674054603275,0.41881046,21511.0,21507.0,0.011]
[1674054603583,0.53991046,21513.0,21504.0,0.15317]
[1674054603853,0.53991046,21513.0,21507.0,0.01]
[1674054603854,0.30208343,21510.0,21507.0,0.01]
[1674054604108,0.30208343,21510.0,21503.0,0.46180658]
[1674054604360,0.384698,21509.0,21503.0,0.46180658]
[1674054604610,0.1211,21509.0,21505.0,0.48852199]
[1674054605117,0.263598,21508.0,21505.0,0.48852199]
[1674054605388,0.1211,21509.0,21505.0,0.48852199]
[1674054605640,0.413598,21508.0,21502.0,0.3690247]
[1674054605902,0.413598,21508.0,21503.0,0.098]
[1674054605903,0.263598,21507.0,21503.0,0.098]
[1674054606227,0.8822085,21508.0,21502.0,0.3690247]
[1674054606427,0.50580435,21506.0,21505.0,0.028]
[1674054606660,0.35580435,21506.0,21505.0,0.028]
[1674054606884,0.61940235,21506.0,21502.0,0.3690247]
[1674054607131,0.77461481,21506.0,21502.0,0.3690247]
[1674054607376,0.263598,21505.0,21502.0,0.3690247]
[1674054607630,0.1211,21504.0,21498.0,0.44725101]
[1674054607881,0.68240846,21503.0,21498.0,0.44725101]
[1674054608157,0.263598,21502.0,21498.0,0.44725101]
[1674054608410,0.41881046,21505.0,21502.0,0.21041676]
[1674054608668,0.35580435,21506.0,21499.0,0.14975]
[1674054608925,0.35580435,21506.0,21500.0,0.46482517]
[1674054609436,0.32858541,21504.0,21500.0,0.46482517]
[1674054609943,0.82783681,21507.0,21500.0,0.46482517]
[1674054610240,0.28792635,21507.0,21501.0,0.432493]
[1674054610454,0.28792635,21507.0,21502.0,0.317349]
[1674054610705,0.28792635,21507.0,21501.0,0.1211]
[1674054610960,0.28792635,21507.0,21501.0,0.2711]
[1674054611283,0.32026708,21509.0,21502.0,0.89537413]
[1674054611455,0.32026708,21509.0,21504.0,0.1211]
[1674054611702,0.32026708,21509.0,21505.0,0.321819]
[1674054611962,1.17091046,21514.0,21504.0,0.1211]
[1674054612218,1.17091046,21514.0,21505.0,0.1211]
[1674054612219,0.34493786,21511.0,21505.0,0.1211]
[1674054612716,0.1337,21508.0,21505.0,0.1211]
[1674054613247,0.1337,21508.0,21506.0,0.31357]
[1674054613501,0.1337,21508.0,21507.0,0.7105]
[1674054613775,0.29708012,21515.0,21508.0,0.40444579]
[1674054614040,0.29708012,21515.0,21510.0,0.1211]
[1674054614284,0.29708012,21515.0,21511.0,0.310725]
[1674054614537,0.29708012,21515.0,21510.0,0.1211]
[1674054614801,0.29146862,21513.0,21510.0,0.1211]
[1674054615081,0.30297976,21511.0,21508.0,0.25444579]
[1674054615321,0.30297976,21511.0,21507.0,0.38265779]
[1674054615862,0.56686798,21515.0,21508.0,0.442629]
[1674054615863,0.32294203,21515.0,21508.0,0.442629]
[1674054616147,0.32294203,21515.0,21511.0,0.098]
[1674054616434,0.32294203,21515.0,21510.0,0.40243949]
[1674054617733,0.32294203,21515.0,21510.0,0.62153949]
[1674054618005,0.32294203,21515.0,21511.0,0.305647]
[1674054618235,0.0123,21513.0,21512.0,0.80889704]
[1674054618499,0.33077627,21519.0,21512.0,0.92969704]
[1674054618758,0.33077627,21519.0,21513.0,0.451812]
[1674054619110,0.33077627,21519.0,21514.0,0.323953]